{"text_format":"3","workbook":"xlsx","n_sheets":1,"sheets":["Kuluraportti"],"not_rendered":{"images":2,"defined_names":12},"read":"whole","date_system":"1900"}

{"sheet":"Kuluraportti","index":0,"n_rows":24,"n_cols":13,"rows_kept":24,"merged":[[3,2,3,3],[3,5,3,6],[3,9,3,10],[4,2,4,3],[4,5,4,6],[4,9,4,10],[5,2,5,3],[5,5,5,6],[5,9,5,10],[6,2,6,3],[6,5,6,6],[6,9,6,10],[7,9,7,10]]}
[null,"KULURAPORTTI"]
[null,"CONTOSO LTD"]
[null,"123 South Main Street, North Buffalo, NY 12345"]
[null,"PUHELIN",4255550121,null,"NIMI","Noora Linna",null,null,"TARKOITUS","Vuotuinen myyntiseminaari",null,"KILOMETRIKORVAUS",{"v":0.5,"d":"€0.50/km"}]
[null,"FAKSI",4255550122,null,"OSASTO","Myynti",null,null,"ALKAA",{"$f":"IFERROR(MIN(Menot[PÄIVÄMÄÄRÄ]),\"\")","v":"2018-06-04"},null,"ATERIAKORVAUS",{"v":30,"d":"€30.00/päivä"}]
[null,"SÄHKÖPOSTI","info@contoso.com",null,"PELIPAIKKA","Toimitusjohtaja",null,null,"LOPPUU",{"$f":"IFERROR(MAX(Menot[PÄIVÄMÄÄRÄ]),\"\")","v":"2018-07-04"},null,"HOTELLIKORVAUS",{"v":200,"d":"€200.00/yö"}]
[null,"VERKKO","www.contoso.com",null,"ESIMIES","Michael Tucker",null,null,"VALMISTELIJA","Noora Linna",null,"PUHELINKORVAUS",{"v":10,"d":"€10.00/päivä"}]
[{"$nulls":8},"HYVÄKSYJÄ","Michael Tucker",null,"SEKALAISTA MÄÄRÄ",{"v":50,"d":"€50.00/päivä"}]
[]
[null,"PÄIVÄMÄÄRÄ","TILI","KUVAUS","HOTELLI","KULJETUS","ATERIAT","PUHELIN","SEKALAISTA","KILOMETRILUKEMA \nALKU","KILOMETRILUKEMA \nLOPPU","KILOMETRIT \nYHTEENSÄ","YHTEENSÄ "]
[null,{"$f":"TODAY()","v":"2018-06-04"},"Myynti","Kilometrit",{"$nulls":4},{"v":50,"d":"50.00 €"},{"v":11378.5,"d":"11,378.5 km"},{"v":11456.2,"d":"11,456.2 km"},{"$f":"IF(COUNTA(Menot[[#This Row],[KILOMETRILUKEMA \nALKU]:[KILOMETRILUKEMA \nLOPPU]])=2,(Menot[[#This Row],[KILOMETRILUKEMA \nLOPPU]]-Menot[[#This Row],[KILOMETRILUKEMA \nALKU]])*Kilometrikorvaus,\"\")","v":{"v":38.850000000000364,"d":"38.85 €"}},{"$f":"IF(COUNTA(Menot[[#This Row],[PÄIVÄMÄÄRÄ]:[KILOMETRILUKEMA \nLOPPU]])=0,\"\",SUM(Menot[[#This Row],[HOTELLI]:[KULJETUS]],Menot[[#This Row],[ATERIAT]:[SEKALAISTA]],((Menot[[#This Row],[KILOMETRILUKEMA \nLOPPU]]-Menot[[#This Row],[KILOMETRILUKEMA \nALKU]])*(Kilometrikorvaus))))","v":{"v":88.85000000000036,"d":"88.85 €"}}]
[null,{"$f":"TODAY()+30","v":"2018-07-04"},"Myynti","Kokous",{"v":445,"d":"445.00 €"},{"v":225,"d":"225.00 €"},{"v":20,"d":"20.00 €"},null,{"v":5,"d":"5.00 €"},{"v":11500,"d":"11,500.0 km"},{"v":11560,"d":"11,560.0 km"},{"$f":"IF(COUNTA(Menot[[#This Row],[KILOMETRILUKEMA \nALKU]:[KILOMETRILUKEMA \nLOPPU]])=2,(Menot[[#This Row],[KILOMETRILUKEMA \nLOPPU]]-Menot[[#This Row],[KILOMETRILUKEMA \nALKU]])*Kilometrikorvaus,\"\")","v":{"v":30,"d":"30.00 €"}},{"$f":"IF(COUNTA(Menot[[#This Row],[PÄIVÄMÄÄRÄ]:[KILOMETRILUKEMA \nLOPPU]])=0,\"\",SUM(Menot[[#This Row],[HOTELLI]:[KULJETUS]],Menot[[#This Row],[ATERIAT]:[SEKALAISTA]],((Menot[[#This Row],[KILOMETRILUKEMA \nLOPPU]]-Menot[[#This Row],[KILOMETRILUKEMA \nALKU]])*(Kilometrikorvaus))))","v":{"v":725,"d":"725.00 €"}}]
[{"$nulls":11},{"$f":"IF(COUNTA(Menot[[#This Row],[KILOMETRILUKEMA \nALKU]:[KILOMETRILUKEMA \nLOPPU]])=2,(Menot[[#This Row],[KILOMETRILUKEMA \nLOPPU]]-Menot[[#This Row],[KILOMETRILUKEMA \nALKU]])*Kilometrikorvaus,\"\")","v":""},{"$f":"IF(COUNTA(Menot[[#This Row],[PÄIVÄMÄÄRÄ]:[KILOMETRILUKEMA \nLOPPU]])=0,\"\",SUM(Menot[[#This Row],[HOTELLI]:[KULJETUS]],Menot[[#This Row],[ATERIAT]:[SEKALAISTA]],((Menot[[#This Row],[KILOMETRILUKEMA \nLOPPU]]-Menot[[#This Row],[KILOMETRILUKEMA \nALKU]])*(Kilometrikorvaus))))","v":""}]
[{"$nulls":11},{"$f":"IF(COUNTA(Menot[[#This Row],[KILOMETRILUKEMA \nALKU]:[KILOMETRILUKEMA \nLOPPU]])=2,(Menot[[#This Row],[KILOMETRILUKEMA \nLOPPU]]-Menot[[#This Row],[KILOMETRILUKEMA \nALKU]])*Kilometrikorvaus,\"\")","v":""},{"$f":"IF(COUNTA(Menot[[#This Row],[PÄIVÄMÄÄRÄ]:[KILOMETRILUKEMA \nLOPPU]])=0,\"\",SUM(Menot[[#This Row],[HOTELLI]:[KULJETUS]],Menot[[#This Row],[ATERIAT]:[SEKALAISTA]],((Menot[[#This Row],[KILOMETRILUKEMA \nLOPPU]]-Menot[[#This Row],[KILOMETRILUKEMA \nALKU]])*(Kilometrikorvaus))))","v":""}]
[{"$nulls":11},{"$f":"IF(COUNTA(Menot[[#This Row],[KILOMETRILUKEMA \nALKU]:[KILOMETRILUKEMA \nLOPPU]])=2,(Menot[[#This Row],[KILOMETRILUKEMA \nLOPPU]]-Menot[[#This Row],[KILOMETRILUKEMA \nALKU]])*Kilometrikorvaus,\"\")","v":""},{"$f":"IF(COUNTA(Menot[[#This Row],[PÄIVÄMÄÄRÄ]:[KILOMETRILUKEMA \nLOPPU]])=0,\"\",SUM(Menot[[#This Row],[HOTELLI]:[KULJETUS]],Menot[[#This Row],[ATERIAT]:[SEKALAISTA]],((Menot[[#This Row],[KILOMETRILUKEMA \nLOPPU]]-Menot[[#This Row],[KILOMETRILUKEMA \nALKU]])*(Kilometrikorvaus))))","v":{"v":0,"d":"0.00 €"}}]
[{"$nulls":11},{"$f":"IF(COUNTA(Menot[[#This Row],[KILOMETRILUKEMA \nALKU]:[KILOMETRILUKEMA \nLOPPU]])=2,(Menot[[#This Row],[KILOMETRILUKEMA \nLOPPU]]-Menot[[#This Row],[KILOMETRILUKEMA \nALKU]])*Kilometrikorvaus,\"\")","v":""},{"$f":"IF(COUNTA(Menot[[#This Row],[PÄIVÄMÄÄRÄ]:[KILOMETRILUKEMA \nLOPPU]])=0,\"\",SUM(Menot[[#This Row],[HOTELLI]:[KULJETUS]],Menot[[#This Row],[ATERIAT]:[SEKALAISTA]],((Menot[[#This Row],[KILOMETRILUKEMA \nLOPPU]]-Menot[[#This Row],[KILOMETRILUKEMA \nALKU]])*(Kilometrikorvaus))))","v":""}]
[{"$nulls":11},{"$f":"IF(COUNTA(Menot[[#This Row],[KILOMETRILUKEMA \nALKU]:[KILOMETRILUKEMA \nLOPPU]])=2,(Menot[[#This Row],[KILOMETRILUKEMA \nLOPPU]]-Menot[[#This Row],[KILOMETRILUKEMA \nALKU]])*Kilometrikorvaus,\"\")","v":""},{"$f":"IF(COUNTA(Menot[[#This Row],[PÄIVÄMÄÄRÄ]:[KILOMETRILUKEMA \nLOPPU]])=0,\"\",SUM(Menot[[#This Row],[HOTELLI]:[KULJETUS]],Menot[[#This Row],[ATERIAT]:[SEKALAISTA]],((Menot[[#This Row],[KILOMETRILUKEMA \nLOPPU]]-Menot[[#This Row],[KILOMETRILUKEMA \nALKU]])*(Kilometrikorvaus))))","v":""}]
[{"$nulls":11},{"$f":"IF(COUNTA(Menot[[#This Row],[KILOMETRILUKEMA \nALKU]:[KILOMETRILUKEMA \nLOPPU]])=2,(Menot[[#This Row],[KILOMETRILUKEMA \nLOPPU]]-Menot[[#This Row],[KILOMETRILUKEMA \nALKU]])*Kilometrikorvaus,\"\")","v":""},{"$f":"IF(COUNTA(Menot[[#This Row],[PÄIVÄMÄÄRÄ]:[KILOMETRILUKEMA \nLOPPU]])=0,\"\",SUM(Menot[[#This Row],[HOTELLI]:[KULJETUS]],Menot[[#This Row],[ATERIAT]:[SEKALAISTA]],((Menot[[#This Row],[KILOMETRILUKEMA \nLOPPU]]-Menot[[#This Row],[KILOMETRILUKEMA \nALKU]])*(Kilometrikorvaus))))","v":""}]
[{"$nulls":11},{"$f":"IF(COUNTA(Menot[[#This Row],[KILOMETRILUKEMA \nALKU]:[KILOMETRILUKEMA \nLOPPU]])=2,(Menot[[#This Row],[KILOMETRILUKEMA \nLOPPU]]-Menot[[#This Row],[KILOMETRILUKEMA \nALKU]])*Kilometrikorvaus,\"\")","v":""},{"$f":"IF(COUNTA(Menot[[#This Row],[PÄIVÄMÄÄRÄ]:[KILOMETRILUKEMA \nLOPPU]])=0,\"\",SUM(Menot[[#This Row],[HOTELLI]:[KULJETUS]],Menot[[#This Row],[ATERIAT]:[SEKALAISTA]],((Menot[[#This Row],[KILOMETRILUKEMA \nLOPPU]]-Menot[[#This Row],[KILOMETRILUKEMA \nALKU]])*(Kilometrikorvaus))))","v":""}]
[{"$nulls":11},{"$f":"IF(COUNTA(Menot[[#This Row],[KILOMETRILUKEMA \nALKU]:[KILOMETRILUKEMA \nLOPPU]])=2,(Menot[[#This Row],[KILOMETRILUKEMA \nLOPPU]]-Menot[[#This Row],[KILOMETRILUKEMA \nALKU]])*Kilometrikorvaus,\"\")","v":""},{"$f":"IF(COUNTA(Menot[[#This Row],[PÄIVÄMÄÄRÄ]:[KILOMETRILUKEMA \nLOPPU]])=0,\"\",SUM(Menot[[#This Row],[HOTELLI]:[KULJETUS]],Menot[[#This Row],[ATERIAT]:[SEKALAISTA]],((Menot[[#This Row],[KILOMETRILUKEMA \nLOPPU]]-Menot[[#This Row],[KILOMETRILUKEMA \nALKU]])*(Kilometrikorvaus))))","v":""}]
[{"$nulls":11},{"$f":"IF(COUNTA(Menot[[#This Row],[KILOMETRILUKEMA \nALKU]:[KILOMETRILUKEMA \nLOPPU]])=2,(Menot[[#This Row],[KILOMETRILUKEMA \nLOPPU]]-Menot[[#This Row],[KILOMETRILUKEMA \nALKU]])*Kilometrikorvaus,\"\")","v":""},{"$f":"IF(COUNTA(Menot[[#This Row],[PÄIVÄMÄÄRÄ]:[KILOMETRILUKEMA \nLOPPU]])=0,\"\",SUM(Menot[[#This Row],[HOTELLI]:[KULJETUS]],Menot[[#This Row],[ATERIAT]:[SEKALAISTA]],((Menot[[#This Row],[KILOMETRILUKEMA \nLOPPU]]-Menot[[#This Row],[KILOMETRILUKEMA \nALKU]])*(Kilometrikorvaus))))","v":""}]
[null,"SUMMAT",null,null,{"$f":"SUBTOTAL(109,Menot[HOTELLI])","v":{"v":445,"d":"445.00 €"}},{"$f":"SUBTOTAL(109,Menot[KULJETUS])","v":{"v":225,"d":"225.00 €"}},{"$f":"SUBTOTAL(109,Menot[ATERIAT])","v":{"v":20,"d":"20.00 €"}},{"$f":"SUBTOTAL(109,Menot[PUHELIN])","v":0},{"$f":"SUBTOTAL(109,Menot[SEKALAISTA])","v":{"v":55,"d":"55.00 €"}},{"$nulls":3},{"$f":"SUBTOTAL(109,Menot[[YHTEENSÄ ]])","v":{"v":813.8500000000004,"d":"813.85 €"}}]
[{"$nulls":11},"ENNAKOT",{"v":0,"d":"0.00 €"}]
[{"$nulls":11},"YHTEENSÄ",{"$f":"Menot[[#Totals],[YHTEENSÄ ]]-Ennakot","v":{"v":813.8500000000004,"d":"813.85 €"}}]